fUST/lending_fUST_20250328
["ID","MTS","AMOUNT","RATE_DAILY","PERIOD"]
[356760334,1743136238628,-356.0,0.00033107,7]
[356760335,1743136238639,-356.0,0.00033107,7]
[356760336,1743136238648,-356.0,0.00033107,7]
[356760337,1743136238657,-356.0,0.00033107,7]
[356760338,1743136238667,-317.0,0.00033107,7]
[356760339,1743136238676,-356.0,0.00033107,7]
[356760340,1743136238685,-413.44718099,0.00033107,7]
[356760341,1743136238694,-356.0,0.00033107,7]
[356760342,1743136238704,-317.0,0.00033107,7]
[356760343,1743136238714,-356.0,0.00033107,7]
[356760344,1743136238723,-317.0,0.00033107,7]
[356760345,1743136238733,-479.23751858,0.00033107,7]
[356760346,1743136238743,-317.0,0.00033107,7]
[356760347,1743136238752,-372.60850944,0.00033107,7]
[356760348,1743136238762,-323.9510498,0.00033107,7]
[356760349,1743136238772,-317.0,0.00033107,7]
[356760350,1743136238783,-317.0,0.00033107,7]
[356760351,1743136238793,-200.0,0.00033107,7]
[356760352,1743136238803,-166.0,0.00033107,7]
[356760353,1743136238814,-168.0,0.00033107,7]
[356760354,1743136238825,-356.0,0.00033107,7]
[356760355,1743136238834,-356.0,0.00033107,7]
[356760356,1743136238843,-317.0,0.00033107,7]
[356760357,1743136238853,-356.0,0.00033107,7]
[356760358,1743136238862,-356.0,0.00033107,7]
[356760359,1743136238871,-622.2,0.00033142,2]
[356760360,1743136238880,-1259.19214358,0.00033197,2]
[356760361,1743136238889,-201.56356876,0.00033635,2]
[356760362,1743136238899,-359.3531643,0.00033666,11]
[356760363,1743136238908,-633.21563566,0.00033718,2]
[356760364,1743136238918,-232.31027442,0.000339,11]
[356760365,1743136238928,-232.31027427,0.00034107,11]
[356760366,1743136238937,-232.31027427,0.00034314,11]
[356760367,1743136238947,-633.21563566,0.00034428,2]
[356760368,1743136238956,-232.31027427,0.00034521,12]
[356760369,1743136238965,-232.31027427,0.00034728,12]
[356760370,1743136238975,-232.31027427,0.00034934,12]
[356760371,1743136238984,-160.0,0.00034981,2]
[356760372,1743136238993,-500.0,0.00035,2]
[356760373,1743136239002,-633.21563566,0.00035139,2]
[356760374,1743136239011,-232.31027427,0.00035141,12]
[356760375,1743136239020,-232.31027427,0.00035348,12]
[356760376,1743136239029,-526.94,0.00035453,3]
[356760377,1743136239038,-418.56810427,0.00035455,2]
[356760378,1743136239047,-160.0,0.00035455,2]
[356760379,1743136239056,-835.12233967,0.00035455,2]
[356760380,1743136239065,-4459.30291758,0.00035461,3]
[356760381,1743136239075,-12458.93820146,0.00035463,2]
[356760382,1743136239084,-151.0,0.00035479,2]
[356760383,1743136239093,-159.61,0.000355,2]
[356760384,1743136239103,-17020.165183,0.000355,2]
[356760385,1743136239111,-156.587,0.00035534,2]
[356760386,1743136239121,-13377.9087527,0.00035546,3]
[356760387,1743136239130,-5000.0,0.00035555,120]
[356760388,1743136239139,-232.31027427,0.00035555,12]
[356760389,1743136239149,-122419.87775711,0.00035556,120]
[356760390,1743136239158,-1712.386032,0.00035556,14]
[356760391,1743136239168,-1712.386032,0.00035556,14]
[356760392,1743136239178,-560.0,0.00035566,2]
[356760393,1743136239189,-162.380719,0.00035589,2]
[356760394,1743136239199,-160.0,0.00035596,3]
[356760395,1743136239209,-418.56810427,0.00035596,3]
[356760396,1743136239219,-835.12233967,0.00035596,3]
[356760397,1743136239228,-8918.60583516,0.00035596,3]
[356760398,1743136239237,-245.0,0.00035603,7]
[356760399,1743136239247,-5909.91116239,0.00035606,3]
[356760400,1743136239463,-2435.58431417,0.00035606,3]
[356760401,1743136239473,-11958.69940725,0.00035606,3]
[356760490,1743136243334,-151.0,0.00035545,14]
[356760491,1743136243344,-151.0,0.00035556,14]
[356760492,1743136243353,-14541.91463,0.00035606,3]
[356760493,1743136243365,-35929.62680885,0.00035606,3]
[356760494,1743136243375,-151.0,0.00035606,14]
[356760495,1743136243384,-151.0,0.00035606,14]
[356760496,1743136243394,-151.0,0.00035606,14]
[356760497,1743136243403,-151.0,0.00035606,14]
[356760498,1743136243413,-151.0,0.00035606,14]
[356760499,1743136243422,-151.0,0.00035606,14]
[356760500,1743136243432,-151.0,0.00035606,14]
[356760501,1743136243441,-151.0,0.00035606,14]
[356760502,1743136243450,-151.0,0.00035606,14]
[356760503,1743136243459,-151.0,0.00035606,14]
[356760504,1743136243469,-300.0,0.00035606,3]
[356760505,1743136243478,-151.0,0.00035606,14]
[356760506,1743136243489,-151.0,0.00035606,14]
[356760507,1743136243500,-151.0,0.00035606,14]
[356760508,1743136243509,-151.0,0.00035606,14]
[356760509,1743136243518,-151.0,0.00035606,14]
[356760510,1743136243531,-151.0,0.00035606,14]
[356760511,1743136243540,-151.0,0.00035606,14]
[356760512,1743136243549,-151.0,0.00035606,14]
[356760513,1743136243559,-151.0,0.00035606,14]
[356760514,1743136243570,-186.352719,0.00035606,14]
[356760515,1743136243581,-158.294782,0.00035606,14]
[356760516,1743136243591,-158.294782,0.00035606,14]
[356760517,1743136243600,-158.294782,0.00035606,14]
[356760518,1743136243610,-158.294782,0.00035606,14]
[356760519,1743136243620,-1712.386032,0.00035606,14]
[356760520,1743136243631,-1712.386032,0.00035606,14]
[356760521,1743136243640,-151.0,0.00035606,14]
[356760522,1743136243649,-151.0,0.00035616,14]
[356760523,1743136243658,-271.080119,0.00035616,14]
[356760524,1743136243668,-500.0,0.00035616,17]
[356760525,1743136243678,-500.0,0.00035616,17]
[356760526,1743136243687,-151.0,0.00035616,14]
[356760527,1743136243696,-151.0,0.00035616,14]
[356760528,1743136243705,-151.0,0.00035616,14]
[356760529,1743136243715,-500.0,0.00035616,17]
[356760530,1743136243724,-153.428383,0.00035616,14]
[356760531,1743136243733,-500.0,0.00035616,17]
[356760532,1743136243742,-500.0,0.00035616,17]
[356760533,1743136243751,-228.60692633,0.00035616,17]
[356760534,1743136243760,-500.0,0.00035616,17]
[356760535,1743136243770,-500.0,0.00035616,17]
[356760536,1743136243780,-500.0,0.00035616,17]
[356760537,1743136243789,-500.0,0.00035616,17]
[356760538,1743136243799,-578.87259572,0.00035616,17]
[356760539,1743136243808,-151.0,0.00035616,14]
[356760540,1743136243818,-151.28539,0.00035616,14]
[356760541,1743136243828,-151.0,0.00035616,14]
[356760542,1743136243838,-151.0,0.00035616,14]
[356760543,1743136243847,-155.720072,0.00035616,14]
[356760544,1743136243857,-500.0,0.00035616,17]
[356760545,1743136243866,-500.0,0.00035616,17]
[356760546,1743136243875,-554.36024277,0.00035616,17]
[356760547,1743136243886,-500.0,0.00035616,17]
[356760548,1743136243895,-500.0,0.00035616,17]
[356760549,1743136243905,-211.99994784,0.00035616,17]
[356760550,1743136243915,-244.58509778,0.00035616,17]
[356760551,1743136243924,-500.0,0.00035616,17]
[356760552,1743136243935,-500.0,0.00035616,17]
[356760553,1743136243944,-500.0,0.00035616,17]
[356760554,1743136243953,-500.0,0.00035616,17]
[356760555,1743136243963,-543.26050543,0.00035616,17]
[356760556,1743136243973,-500.0,0.00035616,17]
[356760557,1743136243982,-500.0,0.00035616,17]
[356760558,1743136243992,-500.0,0.00035616,17]
[356760559,1743136244001,-500.0,0.00035616,17]
[356760560,1743136244010,-500.0,0.00035616,17]
[356760561,1743136244020,-500.0,0.00035616,17]
[356760562,1743136244030,-500.0,0.00035616,17]
[356760563,1743136244039,-500.0,0.00035616,17]
[356760564,1743136244049,-511.42213343,0.00035616,17]
[356760565,1743136244060,-500.0,0.00035616,17]
[356760566,1743136244070,-500.0,0.00035616,17]
[356760567,1743136244083,-1878.11,0.00035616,17]
[356760568,1743136244092,-500.0,0.00035616,17]
[356760569,1743136244101,-500.0,0.00035616,17]
[356760570,1743136244112,-500.0,0.00035616,17]
[356760571,1743136244121,-500.0,0.00035616,17]
[356760572,1743136244130,-500.0,0.00035616,17]
[356760573,1743136244140,-500.0,0.00035616,17]
[356760574,1743136244150,-500.0,0.00035616,17]
[356760575,1743136244159,-500.0,0.00035616,17]
[356760576,1743136244168,-500.0,0.00035616,17]
[356760577,1743136244178,-628.95,0.00035616,17]
[356760578,1743136244187,-500.0,0.00035616,17]
[356760579,1743136244196,-500.0,0.00035616,17]
[356760580,1743136244206,-512.57469617,0.00035616,17]
[356760581,1743136244215,-500.0,0.00035616,17]
[356760582,1743136244224,-500.0,0.00035616,17]
[356760583,1743136244233,-500.0,0.00035616,17]
[356760584,1743136244242,-500.0,0.00035616,17]
[356760585,1743136244251,-456.98036722,0.00035616,17]
[356760586,1743136244260,-500.0,0.00035616,17]
[356760587,1743136244270,-500.0,0.00035616,17]
[356760588,1743136244280,-522.47,0.00035616,17]
[356760589,1743136244289,-508.85947449,0.00035616,17]
[356760590,1743136244298,-500.0,0.00035616,17]
[356760591,1743136244307,-505.84453508,0.00035616,17]
[356760592,1743136244317,-1000.0,0.00035616,17]
[356760593,1743136244327,-500.0,0.00035616,17]
[356760594,1743136244337,-605.8,0.00035616,17]
[356760595,1743136244346,-1018.01,0.00035616,17]
[356760596,1743136244356,-500.0,0.00035616,17]
[356760597,1743136244365,-500.0,0.00035616,17]
[356760598,1743136244375,-617.41,0.00035616,17]
[356760599,1743136244384,-151.0,0.00035616,14]
[356760600,1743136244394,-153.964805,0.00035616,14]
[356760601,1743136244403,-500.0,0.00035616,17]
[356760602,1743136244412,-500.0,0.00035616,17]
[356760603,1743136244421,-500.0,0.00035616,17]
[356760604,1743136244431,-500.0,0.00035616,17]
[356760605,1743136244440,-500.0,0.00035616,17]
[356760606,1743136244449,-500.0,0.00035616,17]
[356760607,1743136244458,-500.0,0.00035616,17]
[356760608,1743136244468,-500.0,0.00035616,17]
[356760609,1743136244477,-507.39951467,0.00035616,17]
[356760610,1743136244486,-500.0,0.00035616,17]
[356760611,1743136244495,-506.23564508,0.00035616,17]
[356760612,1743136244505,-500.0,0.00035616,17]
[356760613,1743136244514,-500.0,0.00035616,17]
[356760614,1743136244524,-500.0,0.00035616,17]
[356760615,1743136244534,-517.28158539,0.00035616,17]
[356760616,1743136244543,-500.0,0.00035616,17]
[356760617,1743136244556,-500.0,0.00035616,17]
[356760618,1743136244567,-863.14,0.00035616,17]
[356760619,1743136244577,-506.1454175,0.00035616,17]
[356760620,1743136244586,-500.0,0.00035616,17]
[356760621,1743136244596,-500.0,0.00035616,17]
[356760622,1743136244606,-508.86554949,0.00035616,17]
[356760623,1743136244616,-505.03691414,0.00035616,17]
[356760624,1743136244626,-862.5,0.00035616,17]
[356760625,1743136244638,-500.0,0.00035616,17]
[356760626,1743136244648,-840.17,0.00035616,17]
[356760627,1743136244657,-500.0,0.00035616,17]
[356760628,1743136244667,-500.0,0.00035616,17]
[356760629,1743136244676,-500.0,0.00035616,17]
[356760630,1743136244686,-631.48,0.00035616,17]
[356760631,1743136244695,-787.81,0.00035616,17]
[356760632,1743136244705,-500.0,0.00035616,17]
[356760633,1743136244714,-646.63,0.00035616,17]
[356760634,1743136244724,-500.0,0.00035616,17]
[356760635,1743136244733,-500.0,0.00035616,17]
[356760636,1743136244743,-574.57,0.00035616,17]
[356760637,1743136244752,-500.0,0.00035616,17]
[356760638,1743136244762,-708.06,0.00035616,17]
[356760639,1743136244771,-500.0,0.00035616,2]
[356760640,1743136244780,-528.50861315,0.00035616,17]
[356760641,1743136244790,-500.0,0.00035616,17]
[356760642,1743136244799,-500.0,0.00035616,17]
[356760643,1743136244809,-500.0,0.00035616,17]
[356760644,1743136244818,-1000.0,0.00035616,17]
[356760645,1743136244828,-500.0,0.00035616,17]
[356760646,1743136244837,-500.0,0.00035616,17]
[356760647,1743136244846,-522.53260749,0.00035616,17]
[356760648,1743136244856,-500.0,0.00035616,17]
[356760649,1743136244865,-500.0,0.00035616,17]
[356760650,1743136244875,-1176.58,0.00035616,17]
[356760651,1743136244884,-500.0,0.00035616,17]
[356760652,1743136244894,-313.32,0.00035616,7]
[356760653,1743136244903,-653.38,0.00035616,17]
[356760654,1743136244912,-506.75250236,0.00035616,17]
[356760655,1743136244921,-500.0,0.00035616,17]
[356760656,1743136244930,-555.27,0.00035616,17]
[356760657,1743136244940,-504.29355225,0.00035616,17]
[356760658,1743136244949,-500.0,0.00035616,17]
[356760659,1743136244958,-500.0,0.00035616,17]
[356760660,1743136244968,-500.0,0.00035616,17]
[356760661,1743136244977,-520.55,0.00035616,17]
[356760662,1743136244987,-500.0,0.00035616,17]
[356760663,1743136244996,-709.46,0.00035616,17]
[356760664,1743136245005,-268.88826788,0.00035616,17]
[356760665,1743136245015,-500.0,0.00035616,17]
[356760666,1743136245024,-500.0,0.00035616,17]
[356760667,1743136245033,-151.0,0.00035616,14]
[356760668,1743136245042,-151.0,0.00035616,14]
[356760669,1743136245052,-151.0,0.00035616,14]
[356760670,1743136245061,-697.49,0.00035616,17]
[356760671,1743136245071,-151.0,0.00035616,14]
[356760672,1743136245081,-175.379836,0.00035616,14]
[356760673,1743136245090,-500.0,0.00035616,17]
[356760674,1743136245100,-635.86444044,0.00035616,17]
[356760675,1743136245110,-500.0,0.00035616,17]
[356760676,1743136245119,-500.0,0.00035616,17]
[356760677,1743136245128,-506.1444872,0.00035616,17]
[356760678,1743136245138,-500.0,0.00035616,17]
[356760679,1743136245147,-513.04827038,0.00035616,17]
[356760680,1743136245156,-668.97,0.00035616,17]
[356760681,1743136245165,-736.22,0.00035616,17]
[356760682,1743136245174,-500.0,0.00035616,17]
[356760683,1743136245183,-500.0,0.00035616,17]
[356760684,1743136245192,-521.8776413,0.00035616,17]
[356760685,1743136245201,-500.0,0.00035616,17]
[356760686,1743136245210,-531.14562429,0.00035616,17]
[356760687,1743136245219,-638.16081979,0.00035616,17]
[356760688,1743136245228,-605.42,0.00035616,17]
[356760689,1743136245237,-154.806369,0.00035616,14]
[356760690,1743136245246,-500.0,0.00035616,17]
[356760691,1743136245256,-500.0,0.00035616,17]
[356760692,1743136245265,-1197.62,0.00035616,17]
[356760693,1743136245274,-500.0,0.00035616,17]
[356760694,1743136245283,-500.0,0.00035616,17]
[356760695,1743136245292,-500.0,0.00035616,17]
[356760696,1743136245301,-500.0,0.00035616,17]
[356760697,1743136245310,-500.0,0.00035616,17]
[356760698,1743136245319,-730.63,0.00035616,17]
[356760699,1743136245328,-500.0,0.00035616,17]
[356760700,1743136245337,-500.0,0.00035616,17]
[356760701,1743136245346,-500.0,0.00035616,17]
[356760702,1743136245356,-500.0,0.00035616,17]
[356760703,1743136245365,-438.18314783,0.00035616,17]
[356760704,1743136245374,-864.59,0.00035616,17]
[356760705,1743136245383,-500.0,0.00035616,17]
[356760706,1743136245392,-500.0,0.00035616,17]
[356760707,1743136245401,-500.0,0.00035616,17]
[356760708,1743136245410,-500.0,0.00035616,17]
[356760709,1743136245419,-500.0,0.00035616,17]
[356760710,1743136245429,-160.05220346,0.00035616,17]
[356760711,1743136245439,-500.0,0.00035616,17]
[356760712,1743136245448,-500.0,0.00035616,17]
[356760713,1743136245457,-500.0,0.00035616,17]
[356760714,1743136245466,-500.0,0.00035616,120]
[356760715,1743136245475,-500.0,0.00035616,17]
[356760716,1743136245484,-500.0,0.00035616,17]
[356760717,1743136245493,-2335.24,0.00035616,17]
[356760718,1743136245502,-500.0,0.00035616,17]
[356760719,1743136245511,-500.0,0.00035616,17]
[356760720,1743136245521,-500.0,0.00035616,17]
[356760721,1743136245535,-506.11197502,0.00035616,17]
[356760722,1743136245544,-500.0,0.00035616,17]
[356760723,1743136245553,-506.25495077,0.00035616,17]
[356760724,1743136245563,-500.0,0.00035616,17]
[356760728,1743136245729,-368.37780563,0.00035616,17]
[356760729,1743136245739,-500.0,0.00035616,17]
[356760730,1743136245749,-465.28304938,0.00035616,17]
[356760731,1743136245758,-500.0,0.00035616,17]
[356760732,1743136245767,-996.17,0.00035616,17]
[356760733,1743136245778,-500.0,0.00035616,17]
[356760734,1743136245788,-500.0,0.00035616,17]
[356760735,1743136245797,-500.0,0.00035616,17]
[356760736,1743136245807,-500.0,0.00035616,17]
[356760737,1743136245816,-1022.32,0.00035616,17]
[356760738,1743136245826,-500.0,0.00035616,17]
[356760739,1743136245836,-528.53339766,0.00035616,17]
[356760740,1743136245845,-2066.37,0.00035616,17]
[356760741,1743136245854,-805.2,0.00035616,17]
[356760742,1743136245864,-500.0,0.00035616,17]
[356760743,1743136245874,-642.05,0.00035616,17]
[356760745,1743136245883,-500.0,0.00035616,17]
[356760746,1743136245892,-500.0,0.00035616,17]
[356760747,1743136245901,-500.0,0.00035616,17]
[356760748,1743136245910,-500.0,0.00035616,17]
[356760749,1743136245919,-500.0,0.00035616,17]
[356760750,1743136245929,-500.0,0.00035616,17]
[356760751,1743136245940,-557.43,0.00035616,7]
[356760752,1743136245950,-500.0,0.00035616,17]
[356760753,1743136245959,-281.32154572,0.00035616,17]
[356760754,1743136245968,-526.25524683,0.00035616,17]
[356760755,1743136245978,-500.0,0.00035616,17]
[356760756,1743136245987,-504.88038495,0.00035616,17]
[356760758,1743136245996,-500.0,0.00035616,17]
[356760759,1743136246006,-500.0,0.00035616,17]
[356760760,1743136246015,-569.15,0.00035616,17]
[356760761,1743136246025,-500.0,0.00035616,17]
[356760762,1743136246034,-502.74874153,0.00035616,17]
[356760763,1743136246044,-500.0,0.00035616,17]
[356760764,1743136246053,-500.0,0.00035616,17]
[356760765,1743136246062,-500.0,0.00035616,17]
[356760766,1743136246071,-500.0,0.00035616,17]
[356760767,1743136246081,-1033.99333231,0.00035616,17]
[356760769,1743136246468,-50000.0,0.00035606,2]
[356760770,1743136246478,-884.22666769,0.00035616,17]
[356760771,1743136246488,-578.82,0.00035616,17]
[356760772,1743136246497,-500.0,0.00035616,17]
[356760773,1743136246506,-500.0,0.00035616,7]
[356760774,1743136246515,-500.0,0.00035616,17]
[356760775,1743136246526,-850.77,0.00035616,17]
[356760776,1743136246535,-500.0,0.00035616,17]
[356760777,1743136246544,-500.0,0.00035616,17]
[356760778,1743136246557,-1003.7,0.00035616,17]
[356760779,1743136246567,-561.09,0.00035616,17]
[356760780,1743136246576,-500.0,0.00035616,17]
[356760781,1743136246586,-500.0,0.00035616,17]
[356760782,1743136246595,-500.0,0.00035616,17]
[356760783,1743136246604,-1056.53,0.00035616,17]
[356760784,1743136246614,-500.0,0.00035616,17]
[356760785,1743136246623,-1612.16,0.00035616,17]
[356760786,1743136246633,-583.91,0.00035616,17]
[356760787,1743136246643,-507.30506436,0.00035616,17]
[356760788,1743136246652,-500.0,0.00035616,17]
[356760789,1743136246662,-500.0,0.00035616,17]
[356760790,1743136246671,-1597.55,0.00035616,17]
[356760791,1743136246680,-1033.34,0.00035616,17]
[356760792,1743136246689,-811.05,0.00035616,17]
[356760793,1743136246700,-500.0,0.00035616,17]
[356760794,1743136246709,-500.0,0.00035616,17]
[356760795,1743136246719,-500.0,0.00035616,17]
[356760796,1743136246728,-500.0,0.00035616,17]
[356760797,1743136246738,-500.0,0.00035616,17]
[356760798,1743136246747,-555.63294281,0.00035616,17]
[356760799,1743136246757,-500.0,0.00035616,17]
[356760800,1743136246766,-500.0,0.00035616,17]
[356760801,1743136246777,-500.0,0.00035616,17]
[356760802,1743136246786,-500.0,0.00035616,17]
[356760803,1743136246795,-500.0,0.00035616,17]
[356760804,1743136246804,-500.0,0.00035616,17]
[356760805,1743136246813,-511.42759954,0.00035616,17]
[356760806,1743136246822,-500.0,0.00035616,17]
[356760807,1743136246832,-500.0,0.00035616,17]
[356760808,1743136246840,-500.0,0.00035616,17]
[356760809,1743136246850,-500.0,0.00035616,17]
[356760810,1743136246859,-500.0,0.00035616,17]
[356760811,1743136246868,-625.15,0.00035616,17]
[356760812,1743136246878,-500.0,0.00035616,17]
[356760813,1743136246887,-500.0,0.00035616,17]
[356760814,1743136246896,-500.0,0.00035616,17]
[356760815,1743136246905,-500.0,0.00035616,17]
[356760816,1743136246915,-500.0,0.00035616,17]
[356760817,1743136246924,-1397.14,0.00035616,17]
[356760818,1743136246933,-500.0,0.00035616,17]
[356760819,1743136246942,-460.68883037,0.00035616,17]
[356760820,1743136246952,-513.86909748,0.00035616,17]
[356760821,1743136246961,-524.77937091,0.00035616,17]
[356760822,1743136246972,-500.0,0.00035616,17]
[356760823,1743136246981,-500.0,0.00035616,17]
[356760824,1743136246991,-500.0,0.00035616,17]
[356760825,1743136247000,-500.0,0.00035616,17]
[356760826,1743136247010,-500.0,0.00035616,17]
[356760827,1743136247019,-500.0,0.00035616,17]
[356760828,1743136247028,-500.0,0.00035616,17]
[356760829,1743136247037,-500.0,0.00035616,17]
[356760830,1743136247047,-500.0,0.00035616,17]
[356760831,1743136247057,-500.0,0.00035616,17]
[356760832,1743136247066,-500.0,0.00035616,17]
[356760833,1743136247075,-500.0,0.00035616,17]
[356760834,1743136247085,-500.0,0.00035616,17]
[356760835,1743136247094,-500.0,0.00035616,17]
[356760836,1743136247103,-500.0,0.00035616,17]
[356760837,1743136247113,-500.0,0.00035616,17]
[356760838,1743136247122,-500.0,0.00035616,17]
[356760839,1743136247131,-505.13458402,0.00035616,17]
[356760840,1743136247141,-500.0,0.00035616,17]
[356760841,1743136247150,-824.19,0.00035616,17]
[356760842,1743136247159,-834.87,0.00035616,17]
[356760843,1743136247168,-500.0,0.00035616,17]
[356760844,1743136247178,-500.0,0.00035616,17]
[356760845,1743136247187,-500.0,0.00035616,17]
[356760846,1743136247197,-500.0,0.00035616,17]
[356760847,1743136247206,-500.0,0.00035616,17]
[356760848,1743136247215,-500.0,0.00035616,17]
[356760849,1743136247224,-500.0,0.00035616,5]
[356760850,1743136247233,-500.0,0.00035616,17]
[356760851,1743136247243,-507.07670389,0.00035616,17]
[356760852,1743136247253,-527.87,0.00035616,17]
[356760853,1743136247263,-500.0,0.00035616,17]
[356760854,1743136247272,-500.0,0.00035616,17]
[356760855,1743136247282,-500.0,0.00035616,17]
[356760856,1743136247291,-502.71205926,0.00035616,17]
[356760857,1743136247301,-500.0,0.00035616,17]
[356760858,1743136247311,-503.65,0.00035616,17]
[356760859,1743136247321,-500.0,0.00035616,17]
[356760860,1743136247331,-500.0,0.00035616,17]
[356760861,1743136247341,-500.0,0.00035616,17]
[356760862,1743136247350,-500.0,0.00035616,17]
[356760863,1743136247359,-500.0,0.00035616,17]
[356760864,1743136247368,-2043.21,0.00035616,17]
[356760865,1743136247377,-757.63,0.00035616,17]
[356760866,1743136247387,-500.0,0.00035616,17]
[356760867,1743136247396,-1647.69,0.00035616,17]
[356760868,1743136247405,-509.56,0.00035616,17]
[356760869,1743136247414,-151.0,0.00035616,14]
[356760870,1743136247424,-500.0,0.00035616,17]
[356760871,1743136247433,-151.0,0.00035616,14]
[356760872,1743136247443,-151.0,0.00035616,14]
[356760873,1743136247452,-151.0,0.00035616,14]
[356760874,1743136247462,-151.0,0.00035616,14]
[356760875,1743136247471,-534.95,0.00035616,17]
[356760876,1743136247481,-2091.39,0.00035616,17]
[356760877,1743136247490,-151.0,0.00035616,14]
[356760878,1743136247500,-274.982202,0.00035616,14]
[356760879,1743136247509,-500.0,0.00035616,17]
[356760880,1743136247518,-506.40629824,0.00035616,17]
[356760881,1743136247529,-500.0,0.00035616,17]
[356760882,1743136247538,-500.0,0.00035616,17]
[356760883,1743136247548,-500.0,0.00035616,17]
[356760884,1743136247561,-500.0,0.00035616,17]
[356760885,1743136247570,-1117.59,0.00035616,17]
[356760886,1743136247581,-500.0,0.00035616,17]
[356760887,1743136247591,-500.0,0.00035616,17]
[356760888,1743136247603,-500.0,0.00035616,17]
[356760889,1743136247613,-500.0,0.00035616,17]
[356760890,1743136247623,-500.0,0.00035616,17]
[356760891,1743136247634,-500.0,0.00035616,17]
[356760892,1743136247643,-430.99696481,0.00035616,17]
[356760893,1743136247652,-500.0,0.00035616,17]
[356760894,1743136247662,-500.0,0.00035616,17]
[356760895,1743136247671,-500.0,0.00035616,17]
[356760896,1743136247681,-506.9180006,0.00035616,17]
[356760897,1743136247690,-605.02,0.00035616,17]
[356760898,1743136247701,-500.0,0.00035616,17]
[356760899,1743136247711,-500.0,0.00035616,17]
[356760900,1743136247721,-1113.33,0.00035616,17]
[356760901,1743136247731,-635.59,0.00035616,17]
[356760902,1743136247741,-500.0,0.00035616,17]
[356760903,1743136247750,-1124.13,0.00035616,17]
[356760904,1743136247759,-500.0,0.00035616,17]
[356760905,1743136247769,-500.0,0.00035616,17]
[356760906,1743136247778,-384.16325058,0.00035616,17]
[356760907,1743136247788,-510.65194306,0.00035616,17]
[356760908,1743136247797,-500.0,0.00035616,17]
[356760909,1743136247807,-500.0,0.00035616,17]
[356760910,1743136247816,-500.0,0.00035616,17]
[356760911,1743136247825,-500.0,0.00035616,17]
[356760912,1743136247836,-500.0,0.00035616,17]
[356760913,1743136247845,-1215.72,0.00035616,17]
[356760914,1743136247855,-500.0,0.00035616,17]
[356760915,1743136247864,-541.98670563,0.00035616,17]
[356760916,1743136247873,-500.0,0.00035616,17]
[356760917,1743136247883,-500.0,0.00035616,17]
[356760918,1743136247892,-500.0,0.00035616,17]
[356760919,1743136247901,-1391.42,0.00035616,17]
[356760920,1743136247911,-500.0,0.00035616,17]
[356760921,1743136247920,-1502.64,0.00035616,17]
[356760922,1743136247929,-500.0,0.00035616,17]
[356760923,1743136247939,-500.0,0.00035616,17]
[356760924,1743136247948,-500.0,0.00035616,17]
[356760925,1743136247958,-786.87,0.00035616,17]
[356760926,1743136247968,-500.0,0.00035616,17]
[356760927,1743136247978,-500.0,0.00035616,17]